Cogmind - Beta 12 @@@ ROGUE MODE // 2024.01.12 @ 15:32:55 Player: puppuppit Result: Destroyed by as-22323 with Assembled Heavy Rifle Performance ------------- Evolutions (0) 0 Regions Visited (2) 400 Robots Destroyed (41) 205 Value Destroyed (651) 651 Prototype IDs (3) 60 Alien Tech Used (0) 0 Bonus (-30) -30 TOTAL SCORE: 1286 Bonus ------- Friendly Fire -30 Cogmind --------- Core Integrity 0/250 Matter 229/300 Energy 100/100 System Corruption 3% Temperature Cool (11) Movement Rolling (80) Location -10/Mines Parts ------- > --- POWER (1) -------- (None) > --- PROPULSION (2) --- Wheel > --- UTILITY (2) ------ Light Armor Plating > --- WEAPON (2) ------- Light Cannon Light Cannon > --- INVENTORY (5) ---- Medium Matter Pod (50) Improved Terrain Scanner Hacking Suite Grenade Launcher Peak State ------------ > --- POWER ------------ Light Ion Engine > --- PROPULSION ------- Wheel Wheel > --- UTILITY ---------- Small Storage Unit Improved Terrain Scanner > --- WEAPON ----------- EM Pulse Gun Medium Laser > --- INVENTORY -------- Light Ion Engine Wheel Seismic Detector Light Assault Rifle [Rating: 9] Favorites ----------- Power Light Ion Engine Engine Light Ion Engine Propulsion Wheel Wheel Wheel Utility Small Storage Unit Device Improved Terrain Scanner Storage Small Storage Unit Processor Transport Network Coupler Protection Light Armor Plating Weapon Light Cannon Energy Gun Medium Laser Ballistic Gun Light Assault Rifle Ballistic Cannon Light Cannon Launcher Grenade Launcher Special Weapon Enhanced Flamer Build | -11 -10 -10 ------- Run | Jun Mat Min Slots Evolved . | . . . Power . | . . . Propulsion . | . . . Utility . | . . . Weapon . | . . . Parts Attached 36 | 9 23 4 Power 7 | 1 5 1 Engine 7 | 1 5 1 Core . | . . . Reactor . | . . . Propulsion 13 | 2 11 . Treads . | . . . Leg . | . . . Wheel 13 | 2 11 . Hover . | . . . Flight . | . . . Utility 5 | 3 2 . Device 2 | 2 . . Storage 1 | 1 . . Processor 1 | . 1 . Hackware . | . . . Protection 1 | . 1 . Artifact . | . . . Weapon 11 | 3 5 3 Energy Gun 3 | 2 1 . Energy Cannon . | . . . Ballistic Gun 2 | 1 1 . Ballistic Cannon 4 | . 3 1 Launcher 1 | . . 1 Special Weapon 1 | . . 1 Impact Weapon . | . . . Slashing Weapon . | . . . Piercing Weapon . | . . . Special Melee Weapon . | . . . Unidentified Prototypes . | . . . Parts Lost 7 | . 3 4 Power 1 | . . 1 Propulsion 3 | . 2 1 Utility 1 | . . 1 Weapon 2 | . 1 1 Highest Loss Streak 3 | . 2 3 To Critical Strikes . | . . . Average Slot Usage (%) 98 | . 100 95 Engine 13 | . 14 13 Wheel 27 | . 28 26 Device 2 | . 4 . Storage 13 | . 14 11 Processor 6 | . 8 . Protection 4 | . 1 14 Energy Gun 2 | . 3 . Ballistic Gun 1 | . 1 . Ballistic Cannon 21 | . 22 19 Launcher 2 | . . 8 Naked Turns . | . . . Heaviest Build 17 | 13 17 17 Greatest Support 20 | 20 20 20 Greatest Overweight (x) 1 | . 1 1 Average Overweight (x) . | . . . Largest Inventory Capacity 8 | 8 8 8 Average Capacity 7 | 7 8 7 Most Carried 8 | 6 8 8 Average Carried 7 | 2 7 7 Final Capacity 8 | 8 8 5 Final Carried 8 | 6 8 4 Class Distribution -------------------- 92% | Mutant 7% | Scavenger-Mutant Dominant Class ---------------- Mutant | -10/Materials Mutant | -10/Mines Resources | -11 -10 -10 ----------- Run | Jun Mat Min Matter Collected 1449 | 209 1036 204 Remotely . | . . . Salvage Created 941 | 85 787 69 Parts 70 | 13 52 5 Haulers Intercepted 2 | . 2 . Recyclers Shooed 1 | . . 1 Parts Field Recycled . | . . . Retrieved Matter . | . . . Parts Self-Destructed . | . . . Prevented . | . . . Kills | -11 -10 -10 ------- Run | Jun Mat Min Combat Hostiles Destroyed 27 | . 19 8 Guns 6 | . 6 . Cannons 19 | . 13 6 AOE 2 | . . 2 Classes Destroyed 9 | 1 7 1 Worker 8 | . 6 2 Builder 1 | . 1 . Tunneler 5 | 5 . . Hauler 2 | . 2 . Operator 1 | . 1 . Watcher 3 | . 3 . Swarmer 8 | . 6 2 Grunt 13 | . 13 . Assembled 6 | . . 6 Best Kill Streak 5 | 5 5 2 Combat Bots Only 5 | . 5 2 Max Kills in Single Turn 2 | 1 1 2 Gunslinging . | . . . Exploded 2 | . . 2 Melee . | . . . Uniques/NPCs Destroyed . | . . . Combat | -11 -10 -10 -------- Run | Jun Mat Min Damage Taken 1271 | 14 754 503 Core 259 | 14 176 69 Absorbed by Shields . | . . . Core Remaining (%) 94 | 94 . . Volleys Fired 128 | 11 81 36 Largest 2 | 2 2 2 Hottest 115 | 90 90 115 Shots Fired 233 | 22 160 51 Gun 52 | 22 30 . Cannon 177 | . 130 47 Launcher 3 | . . 3 Special 1 | . . 1 Kinetic 185 | . 138 47 Thermal 28 | 11 16 1 Explosive 3 | . . 3 Electromagnetic 17 | 11 6 . Robot Hit Streak 7 | 4 7 4 Robot Miss Streak 7 | 3 7 4 Penetration Max . | . . . Secondary Targets . | . . . Shots Hit Robots 104 | 10 72 22 Core Hits 59 | 5 37 17 Critical Kills . | . . . Critical Parts Destroyed . | . . . Critical Strikes 3 | . 3 . Burn 1 | . 1 . Blast 2 | . 2 . Melee Attacks . | . . . Impact . | . . . Slashing . | . . . Piercing . | . . . Sneak Attacks . | . . . Combat Hostiles . | . . . Follow-up Attacks . | . . . Damage Inflicted 1910 | 176 1198 536 Guns 361 | 129 232 . Cannons 1376 | . 966 410 Explosions 173 | 47 . 126 Melee . | . . . Ramming . | . . . Kinetic 1409 | . 999 410 Thermal 244 | 97 147 . Explosive 126 | . . 126 Electromagnetic 131 | 79 52 . Impact . | . . . Slashing . | . . . Piercing . | . . . Highest Corruption 3 | . . 3 Average Corruption 2 | . . 2 Corruption Purged . | . . . Corruption Blocked . | . . . Effects 1 | . . 1 Data Loss (minor) 1 | . . 1 Overload Shots . | . . . Overflow Damage 47 | . 47 . Projectiles 47 | . 47 . Explosions . | . . . Melee . | . . . Knockbacks 19 | . 11 8 Impact . | . . . Kinetic 19 | . 11 8 Secondary . | . . . Self-Inflicted Damage 14 | 14 . . Shots 1 | 1 . . Rammed . | . . . Targets Rammed . | . . . Kicked . | . . . Crushed . | . . . Highest Temperature 243 | 180 243 90 Average Temperature 49 | 88 46 29 Received Heat Transfer 359 | . 279 80 Siege Activations . | . . . Robots Corrupted . | . . . Combat Hostiles . | . . . Parts Fried . | . . . Impact Corruptions . | . . . Robots Melted . | . . . Combat Hostiles . | . . . Parts Melted 2 | 1 1 . Heat Transferred 716 | 198 518 . Parts Sabotaged . | . . . Parts Stolen . | . . . Parts Stripped . | . . . Power Chain Reactions 1 | 1 . . Missiles Intercepted . | . . . Alert | -11 -10 -10 ------- Run | Jun Mat Min Peak Influence 274 | 25 274 145 Initial 41 | . 16 41 Average 105 | 8 110 116 Maximum Alert Level 1 | . 1 . Low Security (%) 93 | 100 90 100 Level 1 6 | . 9 . Level 2 . | . . . Level 3 . | . . . Level 4 . | . . . Level 5 . | . . . High Security . | . . . Max Security . | . . . Squads Dispatched 5 | . 5 . Investigation 4 | . 4 . Extermination . | . . . Reinforcement 1 | . 1 . Assault . | . . . Garrison . | . . . Intercept . | . . . Searches Triggered . | . . . Construction Impeded . | . . . Haulers Reinforced . | . . . Active Scanning Responses . | . . . Cargo Convoy Interrupts . | . . . Stealth | -11 -10 -10 --------- Run | Jun Mat Min Distress Signals 2 | . 2 . Communications Jammed . | . . . Distress Signals . | . . . Times Spotted 49 | . 31 18 Peak Tracking Total 6 | . 6 4 Tactical Retreats 3 | . . 3 Traps | -11 -10 -10 ------- Run | Jun Mat Min Traps Triggered 1 | . 1 . Indirectly . | . . . Trap Hack Attempts . | . . . Triggered . | . . . Disarmed . | . . . Reprogrammed . | . . . Reused . | . . . Traps Extracted . | . . . Installed . | . . . Triggered . | . . . Machines | -11 -10 -10 ---------- Run | Jun Mat Min Machines Disabled . | . . . Max in Single Turn . | . . . Machines Repaired . | . . . Machines Sabotaged . | . . . Overloaded Fab Kills . | . . . Hacking | -11 -10 -10 --------- Run | Jun Mat Min Machines Accessed 8 | . 8 . Terminals 7 | . 7 . Fabricators . | . . . Repair Stations 1 | . 1 . Recycling Units . | . . . Scanalyzers . | . . . Garrison Access . | . . . Total Hacks 29 | . 29 . Successful 11 | . 11 . Failed 17 | . 17 . Catastrophic 2 | . 2 . Database Lockouts 1 | . 1 . Manual 3 | . 3 . Terminals 24 | . 24 . Fabricators . | . . . Repair Stations 5 | . 5 . Recycling Units . | . . . Scanalyzers . | . . . Garrison Access . | . . . Terminal Hacks 11 | . 11 . Record 2 | . 2 . Robot Analysis 2 | . 2 . Prototype ID Bank 2 | . 2 . Branch Access Points 1 | . 1 . Alert Level 1 | . 1 . Unreport Threat 1 | . 1 . Locate Traps 1 | . 1 . Zone Layout 1 | . 1 . Fabricator Hacks . | . . . Repair Station Hacks . | . . . Recycling Unit Hacks . | . . . Scanalyzer . | . . . Garrison Access Hacks . | . . . Unauthorized Hacks . | . . . Terminals . | . . . Fabricators . | . . . Repair Stations . | . . . Recycling Units . | . . . Scanalyzers . | . . . Garrison Access . | . . . Data Cores Recovered . | . . . Used . | . . . Hacking Detections 8 | . 8 . Full Trace Events 4 | . 4 . Feedback Events . | . . . Feedback Blocked . | . . . Robot Schematics Acquired . | . . . Robots Built . | . . . Authchips . | . . . Time . | . . . Total Robot Build Rating . | . . . Part Schematics Acquired . | . . . Parts Built . | . . . Authchips . | . . . Time . | . . . Total Part Build Rating . | . . . Parts Repaired . | . . . Time . | . . . Parts Recycled . | . . . Recycled Matter . | . . . Retrieved Matter . | . . . Retrieved Components . | . . . Parts Scanalyzed . | . . . Part Schematics Acquired . | . . . Parts Damaged . | . . . Bothacking | -11 -10 -10 ------------ Run | Jun Mat Min Used RIF Installer . | . . . Robots Hacked . | . . . Non-combat . | . . . Combat . | . . . Robot Hacks Applied . | . . . Relay Couplers Released . | . . . Fabnet Peak Effective % . | . . . Robots Rewired . | . . . Allies Hacked . | . . . Hacks Repelled . | . . . Allies | -11 -10 -10 -------- Run | Jun Mat Min Total Allies . | . . . Largest Group . | . . . Highest-Rated Group . | . . . Highest-Rated Ally . | . . . Total Orders . | . . . Ally Attacks . | . . . Total Damage . | . . . Kills . | . . . Allies Corrupted . | . . . Allies Melted . | . . . Intel | -11 -10 -10 ------- Run | Jun Mat Min Robot Analysis Total 2 | . 2 . Derelict Logs Recovered . | . . . Drone Launches . | . . . Drone Recoveries . | . . . Exploration | -11 -10 -10 ------------- Run | Jun Mat Min Turns Passed 1427 | 92 976 359 Spaces Moved 1168 | 50 807 311 Core 2 | 2 . . Treads . | . . . Legs . | . . . Wheels 1166 | 48 807 311 Hover . | . . . Flight . | . . . Fastest Speed 50 | 50 80 80 Average Speed 80 | 78 80 80 Slowest Speed 95 | 80 95 95 Overloaded Moves . | . . . Propulsion Burnouts . | . . . Robots Hopped . | . . . Cave-ins Triggered . | . . . Exploration Rate (%) 51 | 4 97 52 Regions Visited 2 Branch Regions 1 Pre-discovered Areas . | . . . Known Exits Taken 1 | . 1 . Unknown Exits Taken 1 | 1 . . Scrap Searched . | . . . Spaces Dug . | . . . Terrain Destroyed 22 | 3 . 19 Melee . | . . . Projectile . | . . . AOE 22 | 3 . 19 Terrain Rammed . | . . . Walls Destroyed . | . . . Machines Disabled . | . . . Actions | -11 -10 -10 --------- Run | Jun Mat Min Total 1430 | 76 986 368 Wait 50 | . 38 12 Move 1166 | 49 806 311 Hop . | . . . Pick Up 24 | 7 15 2 Fast Attach 11 | 6 5 . Attach 5 | 1 3 1 Detach 1 | . 1 . Swap 20 | 2 15 3 Drop 25 | . 22 3 Fire 128 | 11 81 36 Melee . | . . . Ram . | . . . Kick . | . . . Crush . | . . . Escape Stasis . | . . . Rewire . | . . . Trap . | . . . Miscellaneous . | . . . Route ------- -11/Junkyard -10/Materials (discovered 5 exits: [*Mat x3] / *Min x2) -10/Mines (discovered 1 exit: [*Mat]) History --------- Turn | Location | Event 21 | -11/Junkyard | Discovered new exit (range 16) 93 | -11/Junkyard | Entered Materials 212 | -10/Materials | Discovered new exit (range 10) 226 | -10/Materials | Discovered new exit (range 13) 317 | -10/Materials | Build established: Mutant 333 | -10/Materials | Core integrity fell below 50% 454 | -10/Materials | Discovered new exit (range 12) 869 | -10/Materials | Discovered new exit (range 13) 926 | -10/Materials | Identified exit to Mines 956 | -10/Materials | Discovered new exit (range 6) 965 | -10/Materials | Central database locked down 1069 | -10/Materials | Entered Mines 1077 | -10/Mines | Core integrity fell below 20% 1108 | -10/Mines | YI-UF0 nonchalantly dropped a Grenade Launcher on the ground 1108 | -10/Mines | A weapon hastily lodged in a ceiling crevice suddenly fell to the ground 1126 | -10/Mines | Assembled infested the area 1131 | -10/Mines | Assisted by a Guerilla fighting off Assembled 1286 | -10/Mines | Discovered new exit (range 13) 1428 | -10/Mines | Destroyed by as-22323 with Assembled Heavy Rifle Last Messages --------------- 01354_ Sml. Storage Unit destroyed. 01354_ System corrupted by crushing effect (+2). 01354_ as-03024 destroyed. 01357_ System corrupted: Component data lost. 01358_ Dropped Lgt. Ion Engine. 01359_ Extracted 87 matter. 01360_ Dropped Datajack. 01361_ Acquired Med. Matter Pod. 01363_ Acquired 4 matter. 01371_ Acquired 25 matter. 01372_ Acquired 4 matter. 01386_ Knocked back. 01387_ Wheel destroyed. 01391_ Enh. Flamer destroyed. 01391_ System corrupted by crushing effect (+1). 01394_ as-71860 destroyed. 01410_ Lgt. Ion Engine destroyed. 01410_ as-42949 knocked back. 01417_ as-42949 destroyed. 01423_ as-22323 knocked back. Map ----- +----------------------------------------------------+ | # ??????# #????# ##??? | | ?????## #????# ##?? | | = % ?????# ##### ##? | | ### ?????????# # #? | | # #??????????????# #? | | #???#??????????????# ##? | | #??? #?????????????# ######?? | | #??#*#??????????????# #??????? | | #?#|%##?????????????# ##??????? | | ## ! ##????????????# #??????? | | # #????????????## #??????? | | #?????????????## % #??????? | | ???????????????##### #??????? | | ?????????????????????#=*#??????? | | ???????????????????????# #####??? | | #????????????????????????# / #??? | | #?????????????????????????# #??? | | #?????????????????????????##### #??? | | #?????????????????????????????#% #??? | | ##???????????????????????????## ##?? | | ##??????????????????????????# ##? | | ##?????????????????????????# #? | | ##?????????????###++##???## #? | | #?????????????# ##?# ##? | | #?????????????# ###% ##?? | | ###???????????# @ % a ##??? | | "#"#???????????# % ##??? | | % #???????????## #??? | | #????????????# #??? | | ### #???????????## #??? | | ##### #???????????# ###??? | | ?# # #??????????#a ##????? | | ??# # #????? ##### ##?????? | | ??# " #??????? ##????# ##?###??? | | ??##" ##??????#####??????# ### #??? | | ???#" "################### ## #??? | | ???## ## ##?? | | ????############## ########## ##? | | ?????????????????# ######### #? | | ?????????????????# #? | | ?????????????????######## ## < #? | | ????????????????????????# ## #? | | ????????????????????????# #? | | ????????????????????????#### ##? | | ???????????????????????????# #?? | | ???????????????????????????## ##?? | | ????????????????????????????######??? | | ????????????????????????????????????? | | | | | +----------------------------------------------------+ Best States ------------- Heat Dissipation 25 Energy Generation 10 Energy Capacity 125 Matter Stores 300 Matter Capacity 300 Sight Range 16 Terrain Scan Range 16 Terrain Scan Density 10 Armor Coverage 150 Evasion (%) 44 Item Schematics ----------------- None Robot Schematics ------------------ None Fabricated ------------ Nothing Alien Tech Used ----------------- None Achievements -------------- None Challenges ------------ None Game ------ Seed NodeGammaBoosters Manual? 0 Play Time 00:22:08 Cumulative 51.2 hours Start 2024.01.12 @ 15:12:00 End 2024.01.12 @ 15:32:55 Sessions 1 Manual Loads 0 Difficulty Rogue Special Mode None Game No. 28 Rogue 28 Adventurer 0 Explorer 0 Win Type - Total 0 Types 0/0/0/0/0/0/0/0/0 Lore% 49 Gallery% 47 Achievement% 38 Wizard Run 0 Options --------- ASCII 0 Keyboard 1 Movement Arrows Keybinds 0 Fullscreen 1 Font 12/Proggy Map View 83x54 Tactical HUD 1 Map Filters NONE Filters NONE Steam 0 RUN: d8a87a9d-8357-4f47-990d-943c4c427f02